bitfinex/quotes_ETHUSD_20220308
["timestamp","ask_amount","ask_price","bid_price","bid_amount"]
[1646710937861,4.90478088,2538.9,2538.8,0.50396952]
[1646710938062,1.40478088,2538.9,2538.8,0.01800012]
[1646710938261,2.40478088,2538.9,2538.8,0.01800012]
[1646710938464,1.40478088,2538.9,2538.8,0.4978196]
[1646710938716,1.40478088,2538.9,2538.8,0.01800012]
[1646710938905,1.89578088,2538.9,2538.8,0.49765042]
[1646710939106,1.89578088,2538.9,2538.8,0.01800012]
[1646710939307,1.89578088,2538.9,2538.8,0.49765008]
[1646710939611,1.89578088,2538.9,2538.8,0.49013354]
[1646710939808,1.89578088,2538.9,2538.8,0.49017757]
[1646710940006,1.89578088,2538.9,2538.8,0.49017906]
[1646710940007,5.39578088,2538.9,2538.8,0.49017906]
[1646710940209,0.94262431,2538.5,2538.4,0.132718]
[1646710940409,2.04914583,2538.5,2538.4,0.61405828]
[1646710941711,3.149924,2538.5,2538.4,0.61405828]
[1646710944665,5.0,2538.3,2538.1,0.1616866]
[1646710944860,10.29383593,2538.3,2538.2,0.0751603]
[1646710945059,6.79383593,2538.3,2538.2,0.0751603]
[1646710945259,10.29383593,2538.3,2538.2,0.0751603]
[1646710945858,1.79383593,2538.3,2538.2,0.0751603]
[1646710946309,4.29383593,2538.3,2538.1,0.16730193]
[1646710946511,4.29383593,2538.3,2538.2,0.008864]
[1646710946709,6.27958183,2538.3,2538.2,0.008864]
[1646710946910,6.27958183,2538.3,2538.1,0.17888993]
[1646710947212,6.27958183,2538.3,2538.2,0.017728]
[1646710947611,2.77958183,2538.3,2538.1,0.17888993]
[1646710947810,1.77958183,2538.3,2538.1,0.17888993]
[1646710948010,2.77958183,2538.3,2538.1,0.17888993]
[1646710948214,1.77958183,2538.3,2538.1,0.17888993]
[1646710948411,0.30283593,2538.3,2538.1,0.1732746]
[1646710948609,0.00283593,2538.3,2538.1,0.17888998]
[1646710949610,0.00283593,2538.3,2538.1,0.1732746]
[1646710949814,0.00283593,2538.3,2538.1,0.17888998]
[1646710950659,0.00283593,2538.3,2538.1,0.1732746]
[1646710951261,0.00283593,2538.3,2538.1,0.17870046]
[1646710951866,0.49383593,2538.3,2538.1,0.17870046]
[1646710952063,0.79383593,2538.3,2538.1,0.1732746]
[1646710952263,0.79383593,2538.3,2538.1,0.17870046]
[1646710953064,0.79383593,2538.3,2538.1,0.1732746]
[1646710953463,0.79383593,2538.3,2538.1,0.17870046]
[1646710953721,3.5,2538.2,2538.1,0.17870046]
[1646710953908,3.99383593,2538.2,2538.1,0.17870046]
[1646710954108,5.29383593,2538.2,2538.1,0.17870046]
[1646710954408,5.29383593,2538.2,2538.1,0.1732746]
[1646710955013,1.79383593,2538.2,2538.1,0.1732746]
[1646710955210,0.79383593,2538.2,2538.1,0.1732746]
[1646710955410,4.29383593,2538.2,2538.1,0.1732746]
[1646710955810,4.29383593,2538.2,2538.0,0.04360749]
[1646710955811,5.1732,2538.1,2538.0,0.04360749]
[1646710956012,5.0,2538.0,2537.9,0.10687]
[1646710956209,5.0,2538.0,2537.9,0.101327]
[1646710956210,8.80283593,2538.0,2537.9,0.101327]
[1646710956415,9.80283593,2538.0,2537.9,0.101327]
[1646710956816,11.26802555,2538.0,2537.9,0.101327]
[1646710957216,6.26802555,2538.0,2537.9,0.101327]
[1646710959363,2.76802555,2538.0,2537.9,0.101327]
[1646710959565,6.26802555,2538.0,2537.9,0.101327]
[1646710960168,0.02167343,2537.7,2537.4,0.20560683]
[1646710960366,1.03426881,2537.6,2537.4,0.1042706]
[1646710960567,1.33710474,2537.6,2537.4,0.20560683]
[1646710960768,0.30283593,2537.6,2537.4,0.20560683]
[1646710961069,0.00283593,2537.6,2537.4,0.20560683]
[1646710961714,0.00283593,2537.6,2537.4,0.1042706]
[1646710964816,0.00283593,2537.6,2537.5,0.53341238]
[1646710970809,0.00283593,2537.6,2537.5,0.33341238]
[1646710971008,0.00283593,2537.6,2537.4,0.1096971]
[1646710971209,0.00283593,2537.6,2537.4,0.1042706]
[1646710971414,0.00283593,2537.6,2537.4,0.1096971]
[1646710972456,0.00283593,2537.6,2537.4,0.1042706]
[1646710972660,0.00283593,2537.6,2537.4,0.10969715]
[1646710973658,0.00283593,2537.6,2537.4,0.1042706]
[1646710973857,0.00283593,2537.6,2537.4,0.10959174]
[1646710974756,0.00283593,2537.6,2537.4,0.1042706]
[1646710974957,0.00283593,2537.6,2537.4,0.10959174]
[1646710975961,0.00283593,2537.6,2537.4,0.1042706]
[1646710976219,0.00283593,2537.6,2537.4,0.10959174]
[1646710977215,0.00283593,2537.6,2537.4,0.1042706]
[1646710977414,0.00283593,2537.6,2537.4,0.10959915]
[1646710978416,0.00283593,2537.6,2537.4,0.1042706]
[1646710978617,0.00283593,2537.6,2537.4,0.10959915]
[1646710979519,0.00283593,2537.6,2537.4,0.1042706]
[1646710979962,0.00283593,2537.6,2537.4,0.10959915]
[1646710980367,0.00283593,2537.6,2537.4,0.10316404]
[1646710980766,0.00283593,2537.6,2537.4,0.09783549]
[1646710980967,0.00283593,2537.6,2537.4,0.10316347]
[1646710981570,0.00122047,2537.6,2537.4,0.10316347]
[1646710981766,0.0040564,2537.6,2537.4,0.10316347]
[1646710981968,0.0040564,2537.6,2537.4,0.09783549]
[1646710982170,0.0040564,2537.6,2537.4,0.10316347]
[1646710983175,0.0040564,2537.6,2537.4,0.09783549]
[1646710983373,0.0040564,2537.6,2537.4,0.10316347]
[1646710984312,0.0040564,2537.6,2537.4,0.09783549]
[1646710984713,0.0040564,2537.6,2537.4,0.10316352]
[1646710985113,0.0040564,2537.6,2537.4,0.10101882]
[1646710985515,0.0040564,2537.6,2537.4,0.09569079]
[1646710985920,0.0040564,2537.6,2537.4,0.10101882]
[1646710986723,0.0040564,2537.6,2537.4,0.69143462]
[1646710987126,0.0040564,2537.6,2537.4,0.69676265]
[1646710987961,0.0040564,2537.6,2537.4,0.69143462]
[1646710988161,0.0040564,2537.6,2537.4,0.69676265]
[1646710988565,0.0040564,2537.6,2537.4,0.10101882]
[1646710989262,0.0040564,2537.6,2537.4,0.09569079]
[1646710990965,0.0040564,2537.6,2537.5,0.45487522]
[1646710990966,1.14181027,2537.6,2537.5,0.45487522]
[1646710991819,1.63281027,2537.6,2537.5,0.45487522]
[1646710992019,1.63281027,2537.6,2537.4,0.10130443]
[1646710992221,1.13775387,2537.5,2537.4,0.10130443]
[1646710992419,1.4405898,2537.5,2537.4,0.55620411]
[1646710992822,1.4405898,2537.5,2537.4,0.55059047]
[1646710995372,0.30283593,2537.5,2537.4,0.09569079]
[1646710997274,1.44050371,2537.5,2537.4,0.55043701]
[1646711001324,1.44050371,2537.5,2537.4,0.09569079]
[1646711001525,1.44050371,2537.5,2537.4,0.0372706]
[1646711001723,1.44050371,2537.5,2537.3,0.00550576]
[1646711001724,1.34099896,2537.1,2536.9,0.12363081]
[1646711001922,1.34099896,2537.1,2537.0,0.45750344]
[1646711002123,1.49018605,2537.1,2537.0,0.45750344]
[1646711002862,0.35778909,2537.1,2537.0,0.45750344]
[1646711004366,0.35778909,2537.1,2537.0,4.22115922]
[1646711004367,0.05778909,2537.1,2537.0,4.22115922]
[1646711004568,0.3925,2538.0,2537.0,4.22115922]
[1646711004569,0.197,2538.1,2537.2,5.0]
[1646711004769,0.93672803,2538.0,2537.6,1.12589987]
[1646711004967,0.64262431,2538.5,2538.0,0.3925]
[1646711004968,1.13401284,2538.4,2538.0,0.3925]
[1646711005167,1.11199769,2538.3,2538.1,0.45750344]
[1646711005567,1.11199769,2538.3,2538.2,0.45750344]
[1646711005768,1.11199769,2538.3,2538.0,0.45750344]
[1646711005769,2.09745689,2538.3,2538.0,0.45750344]
[1646711005969,1.11199769,2538.2,2538.0,0.45750344]
[1646711006417,1.11199769,2538.2,2537.6,0.00200788]
[1646711006418,3.5,2538.1,2537.6,0.00200788]
[1646711006622,3.5,2538.1,2537.6,0.44995609]
[1646711006623,2.09786769,2538.0,2537.6,0.44995609]
[1646711006817,2.09786769,2538.0,2537.4,0.00200788]
[1646711006818,5.59792379,2537.9,2537.7,0.44995609]
[1646711007018,5.10299769,2537.8,2537.2,1.7621]
[1646711007219,2.23698283,2537.7,2537.3,0.42281023]
[1646711007418,1.60299769,2537.6,2537.4,0.42281023]
[1646711007619,1.11199769,2537.5,2536.9,0.0190057]
[1646711007820,1.11199769,2537.5,2537.0,0.42287532]
[1646711008020,0.3,2537.1,2537.0,0.42287532]
[1646711008221,1.41199769,2537.1,2537.0,0.42287532]
[1646711008624,0.3,2537.1,2537.0,0.42287532]
[1646711013169,0.3,2537.1,2537.0,1.00240666]
[1646711013170,1.46768918,2537.1,2537.0,1.00240666]
[1646711013379,1.46768918,2537.1,2537.0,0.42287532]
[1646711013570,0.3,2537.1,2537.0,0.42287532]
[1646711014815,1.47174764,2537.1,2537.0,0.42287532]
[1646711015418,0.3,2537.1,2537.0,0.42287532]
[1646711016419,1.47138121,2537.1,2537.0,0.42287532]
[1646711016618,0.3,2537.1,2537.0,0.42287532]
[1646711018272,1.47121011,2537.1,2537.0,0.42287532]
[1646711020278,0.3,2537.1,2537.0,0.42287532]
[1646711021519,1.47137127,2537.1,2537.0,0.42287532]
[1646711022220,0.9859956,2537.2,2537.1,0.46957799]
[1646711022416,2.16298417,2537.2,2537.1,0.89245331]
[1646711022618,1.17698857,2537.2,2537.1,0.89245331]
[1646711022819,1.14548418,2537.2,2537.1,0.89245331]
[1646711024221,1.44548418,2537.2,2537.1,0.89245331]
[1646711027070,3.2579247,2537.3,2537.1,0.89245331]
[1646711027269,3.2579247,2537.3,2537.1,0.46957799]
[1646711028071,3.2579247,2537.3,2537.1,0.4748986]
[1646711028912,3.2579247,2537.3,2537.1,0.46957799]
[1646711029113,3.2579247,2537.3,2537.1,0.4748986]
[1646711030115,3.2579247,2537.3,2537.1,0.46957799]
[1646711030313,3.2579247,2537.3,2537.1,0.4748986]
[1646711030713,7.7579247,2537.3,2537.1,0.4748986]
[1646711030913,3.5,2537.2,2537.1,0.4748986]
[1646711031115,4.5,2537.2,2537.1,0.4748986]
[1646711031317,5.991,2537.2,2537.1,0.46957799]
[1646711031718,5.991,2537.2,2537.1,0.47489859]
[1646711032317,4.991,2537.2,2537.1,0.47489859]
[1646711032564,5.991,2537.2,2537.1,0.46957799]
[1646711032963,2.491,2537.2,2537.1,0.46957799]
[1646711033163,5.991,2537.2,2537.1,0.46957799]
[1646711033365,4.991,2537.2,2537.1,0.46957799]
[1646711033568,5.991,2537.2,2537.1,0.46957799]
[1646711034468,2.491,2537.2,2537.1,0.46957799]
[1646711034868,4.991,2537.2,2537.1,0.46957799]
[1646711035269,0.491,2537.2,2537.1,0.46957799]
[1646711035471,2.2859718,2537.3,2537.1,0.46957799]
[1646711035873,1.2859718,2537.3,2537.1,0.46957799]
[1646711036071,0.9857605,2537.6,2537.1,0.46957799]
[1646711036359,0.9857605,2537.6,2537.1,0.47490115]
[1646711036566,2.06374904,2537.6,2537.1,0.47490115]
[1646711037260,2.06374904,2537.6,2537.1,0.46957799]
[1646711037261,0.3,2537.5,2537.1,0.46957799]
[1646711037760,3.8,2537.5,2537.2,0.00532313]
[1646711038159,6.0057746,2537.5,2537.2,0.00532313]
[1646711038558,7.0057746,2537.5,2537.1,0.46957799]
[1646711038759,0.7147746,2537.4,2537.1,0.46957799]
[1646711038959,3.5,2537.3,2537.2,0.00532041]
[1646711039358,4.8,2537.3,2537.2,0.00532041]
[1646711039563,0.3,2537.3,2537.2,0.00532041]
[1646711039760,0.3,2537.3,2537.1,0.46957799]
[1646711039761,2.3,2537.3,2537.1,0.46957799]
[1646711039962,0.00532041,2537.2,2537.1,0.47489838]
[1646711040264,4.5,2537.1,2536.9,0.0190057]
[1646711040465,5.57852801,2537.0,2536.9,0.0190057]
[1646711041063,2.07852801,2537.0,2536.9,0.0190057]
[1646711041271,4.57852801,2537.0,2536.9,0.0190057]
[1646711041478,5.0,2536.9,2536.7,0.0469573]
[1646711041671,3.991,2536.8,2536.7,0.0469573]
[1646711041970,5.0,2536.7,2536.4,0.075845]
[1646711042170,5.0,2536.6,2536.4,0.075845]
[1646711042371,1.10542634,2536.3,2536.2,0.04827219]
[1646711042569,1.40542634,2536.3,2536.2,0.12815938]
[1646711043371,1.40542634,2536.3,2536.2,0.42198626]
[1646711044016,0.3,2536.3,2536.2,0.42198626]
[1646711044417,1.2864488,2536.4,2536.2,0.42198626]
[1646711044618,0.3,2536.4,2536.3,0.39501732]
[1646711044918,0.3,2536.6,2536.3,0.40218452]
[1646711045117,1.491,2536.7,2536.4,0.39501732]
[1646711045118,2.35859422,2536.5,2536.4,0.39501732]
[1646711045521,1.46659872,2536.5,2536.4,0.39485901]
[1646711045719,1.46659872,2536.5,2536.4,0.39484839]
[1646711045920,1.46659872,2536.5,2536.4,0.40201559]
[1646711046120,3.2586679,2536.6,2536.4,0.40201559]
[1646711046322,2.2281,2536.9,2536.4,0.0071672]
[1646711046522,1.19163324,2536.8,2536.5,0.39470723]
[1646711046921,1.19163324,2536.8,2536.5,0.40187443]
[1646711047121,2.37949455,2536.8,2536.5,0.0071672]
[1646711047321,1.18786131,2536.8,2536.5,0.012491]
[1646711047569,1.19163739,2536.7,2536.5,0.012491]
[1646711047970,0.3,2536.7,2536.5,0.012491]
[1646711048174,0.9860579,2536.8,2536.5,0.0071672]
[1646711048372,0.9860579,2536.8,2536.5,0.01249104]
[1646711049372,0.9860579,2536.8,2536.5,0.0071672]
[1646711049578,0.9860579,2536.8,2536.5,0.01249125]
[1646711049777,1.19167716,2536.7,2536.5,0.01249125]
[1646711050178,0.9860579,2536.8,2536.6,0.39518212]
[1646711050378,1.19350922,2536.7,2536.6,0.39518212]
[1646711050883,1.49350922,2536.7,2536.6,0.40767333]
[1646711051078,1.49350922,2536.7,2536.6,0.01249121]
[1646711051716,1.93450922,2536.7,2536.6,0.0071672]
[1646711053320,2.93450922,2536.7,2536.6,0.0071672]
[1646711053520,1.68450922,2536.7,2536.6,0.0071672]
[1646711053717,1.19350922,2536.7,2536.6,0.4022198]
[1646711053917,2.19350922,2536.7,2536.6,0.4022198]
[1646711054117,2.6614523,2537.1,2536.6,0.4022198]
[1646711054118,1.1844,2537.1,2536.6,0.4022198]
[1646711054318,1.19313682,2537.0,2536.7,0.3950526]
[1646711054965,1.19313682,2537.0,2536.7,0.39578743]
[1646711055164,1.19313682,2537.0,2536.7,0.9930972]
[1646711055765,1.19313682,2537.0,2536.7,0.99842105]
[1646711056273,1.49313682,2537.0,2536.7,0.99842105]
[1646711056471,0.3,2537.0,2536.7,0.99842105]
[1646711056670,0.3,2537.0,2536.7,0.9930972]
[1646711056872,1.3,2537.1,2536.7,0.99842106]
[1646711057870,1.3,2537.1,2536.7,0.9930972]
[1646711058071,1.3,2537.1,2536.8,0.00532381]
[1646711059014,1.3,2537.1,2536.7,0.0071672]
[1646711059216,1.3,2537.1,2536.8,0.00532377]
[1646711059619,1.0,2537.1,2536.8,0.00532377]
[1646711059820,0.00532041,2537.2,2536.8,0.00532377]
[1646711060022,0.00532041,2537.2,2536.8,1.97705377]
[1646711060220,0.00532041,2537.2,2536.8,2.27173]
[1646711060421,0.00532041,2537.2,2536.8,3.25765]
[1646711060623,0.00532041,2537.2,2536.9,0.00532371]
[1646711060822,0.00532041,2537.2,2536.9,3.2380282]
[1646711061222,0.00532041,2537.2,2536.9,4.95880126]
[1646711061430,1.3472328,2538.4,2537.3,0.3925]
[1646711061431,0.197,2538.3,2537.3,0.3925]
[1646711061626,0.197,2538.3,2537.4,1.41392308]
[1646711061820,0.9530328,2538.8,2537.4,1.41392308]
[1646711061821,0.00532153,2537.9,2537.7,0.3925]
[1646711062220,0.00532153,2537.9,2537.8,0.90617359]
[1646711062468,0.00272745,2537.9,2537.8,0.90617359]
[1646711062668,1.91450958,2538.6,2537.8,0.90617359]
[1646711062871,0.7147746,2538.5,2537.7,0.3]
[1646711063070,0.7147746,2538.4,2537.7,0.3]
[1646711063272,1.0147746,2538.4,2537.6,2.27273788]
[1646711063571,0.7147746,2538.3,2537.6,1.97073]
[1646711063771,0.7147746,2538.3,2537.7,0.98558]
[1646711063974,1.0147746,2538.4,2537.8,0.98543]
[1646711064172,1.0147746,2538.4,2537.8,1.99314587]
[1646711064472,0.3,2538.4,2537.8,2.29314587]
[1646711064871,0.7147746,2538.4,2537.9,0.98549]
[1646711065272,0.7147746,2538.3,2537.9,0.98549]
[1646711065674,0.7147746,2538.4,2537.9,0.98549]
[1646711066424,1.5057746,2538.5,2537.9,0.98549]
[1646711066824,0.00304206,2538.3,2537.9,0.98549]
[1646711067425,0.7147746,2538.4,2537.9,0.98549]
[1646711067626,1.0147746,2538.4,2537.9,0.98549]
[1646711067826,0.791,2538.5,2537.9,0.98549]
[1646711067827,0.00561615,2538.2,2537.9,0.98549]
[1646711068626,0.791,2538.5,2537.9,0.98549]
[1646711069026,0.0056162,2538.2,2537.9,0.98549]
[1646711069969,1.2855015,2538.4,2537.8,1.30771587]
[1646711070174,0.0056162,2538.2,2537.8,1.00771587]
[1646711070372,0.0056162,2538.2,2537.7,1.28554]
[1646711070373,0.0056162,2538.2,2537.7,0.3]
[1646711070572,0.0056162,2538.2,2537.6,4.24165]
[1646711071174,1.0147746,2538.4,2537.6,4.24165]
[1646711071379,0.00545661,2538.0,2537.6,4.24165]
[1646711071578,0.00545661,2538.0,2537.7,1.03272371]
[1646711071782,0.00545661,2538.0,2537.6,4.24165]
[1646711072376,0.9855655,2538.2,2537.6,4.24165]
[1646711072577,0.00535118,2538.0,2537.6,1.97092]
[1646711072779,0.00535118,2538.0,2537.4,4.11424308]
[1646711072978,1.06300123,2537.9,2537.4,1.26584308]
[1646711073476,0.3,2538.0,2537.4,0.03614308]
[1646711073730,0.30535101,2538.0,2537.5,1.97124]
[1646711073919,0.985678,2537.9,2537.5,1.97124]
[1646711074120,0.985678,2537.9,2537.5,2.27124]
[1646711074422,0.30535101,2538.0,2537.5,1.97124]
[1646711074618,0.491,2538.1,2537.5,2.27124]
[1646711074619,0.791,2538.1,2537.5,2.27124]
[1646711075020,0.00551081,2538.0,2537.5,1.97124]
[1646711075220,0.00551081,2538.0,2537.5,2.27124]
[1646711075221,1.19514752,2537.9,2537.5,2.27124]
[1646711075622,1.49514752,2537.9,2537.5,1.97124]
[1646711075822,1.19514752,2537.8,2537.5,2.27124]
[1646711076624,1.19514752,2537.8,2537.5,1.97124]
[1646711076825,1.19514752,2537.8,2537.5,2.27124]
[1646711077128,0.491,2538.3,2537.5,2.27124]
[1646711077129,4.2147746,2538.6,2537.7,0.98547]
[1646711077325,4.2147746,2538.6,2537.7,1.28547]
[1646711077326,0.0053173,2538.0,2537.7,1.28547]
[1646711077567,0.0053173,2538.0,2537.7,2.27093]
[1646711078268,2.2742769,2538.6,2537.9,0.98897579]
[1646711078469,0.3,2538.2,2537.9,1.97440579]
[1646711078668,0.00531754,2538.0,2537.9,1.97440579]
[1646711079471,0.9854809,2538.4,2537.9,0.98897579]
[1646711079675,1.19471466,2538.3,2538.0,0.98551]
[1646711079871,0.00532254,2538.1,2538.0,0.98551]
[1646711080074,1.2000372,2538.1,2538.0,0.98551]
[1646711080672,1.19471466,2538.1,2538.0,0.98551]
[1646711082227,0.00532245,2538.2,2538.0,0.98551]
[1646711082426,0.12860522,2537.8,2537.7,2.15673282]
[1646711082824,0.12860522,2537.8,2537.7,0.91863282]
[1646711084969,0.12860522,2537.8,2537.6,3.94179]
[1646711085168,0.12860522,2537.8,2537.6,1.97092]
[1646711090517,0.12860522,2537.8,2537.6,3.94186]
[1646711090921,0.12860522,2537.8,2537.7,0.41775727]
[1646711091921,0.12860522,2537.8,2537.6,5.06925615]
[1646711093368,0.12860522,2537.8,2537.6,1.97092]
[1646711095573,1.23945554,2537.8,2537.6,1.97092]
[1646711095774,1.53945554,2537.8,2537.6,1.97092]
[1646711096623,1.16848775,2537.7,2537.6,1.97092]
[1646711097323,1.16848775,2537.7,2537.6,1.92092]
[1646711098725,1.16848775,2537.7,2537.6,2.33890489]
[1646711099122,1.16848775,2537.7,2537.6,1.92092]
[1646711099526,1.16848775,2537.7,2537.6,2.33891264]
[1646711100075,1.16848775,2537.7,2537.6,2.33891078]
[1646711101477,1.16848775,2537.7,2537.6,1.92092]
[1646711102279,1.16848775,2537.7,2537.6,0.20650323]
[1646711102679,1.16848775,2537.7,2537.6,0.65729602]
[1646711105521,1.16848775,2537.7,2537.6,1.71664624]
[1646711105922,0.12860522,2537.8,2537.6,1.71664624]
[1646711105923,0.12860522,2537.8,2537.6,2.70193624]
[1646711106120,0.12860522,2537.8,2537.7,0.45079279]
[1646711106924,1.26982671,2537.8,2537.7,0.45079279]
[1646711107768,0.12860522,2537.8,2537.7,0.45079279]
[1646711108372,1.26971738,2537.8,2537.7,0.45079279]
[1646711109370,1.26971738,2537.8,2537.7,0.89797285]
[1646711113529,5.06971738,2537.8,2537.7,0.89797285]
[1646711113725,5.06971738,2537.8,2537.7,0.44718006]
[1646711113726,6.27549198,2537.8,2537.7,0.44718006]
[1646711114324,7.27549198,2537.8,2537.7,0.44718006]
[1646711114526,5.9859495,2537.7,2537.1,1.97168]
[1646711114723,5.9859495,2537.7,2537.0,0.00200788]
[1646711114724,5.84618392,2537.6,2537.2,0.52750074]
[1646711114969,5.84618392,2537.6,2537.2,0.08517965]
[1646711114970,1.85518392,2537.5,2537.2,0.08517965]
[1646711115172,3.991,2537.4,2537.2,0.08517965]
[1646711115371,1.14111216,2537.3,2537.2,0.08517965]
[1646711115571,2.70804992,2537.3,2536.8,0.44235021]
[1646711115871,1.14111216,2537.2,2536.9,0.44235021]
[1646711116074,2.91813576,2537.2,2536.9,0.44235021]
[1646711116277,1.14111216,2537.1,2536.9,0.44235021]
[1646711116476,1.14111216,2537.1,2536.7,0.0071672]
[1646711116477,2.5,2536.9,2536.7,0.0071672]
[1646711116676,1.14111216,2537.1,2536.7,0.0071672]
[1646711116677,3.5,2536.8,2536.7,0.0071672]
[1646711116877,1.79000952,2537.3,2536.7,0.0071672]
[1646711116878,0.491,2536.9,2536.7,0.0071672]
[1646711117079,2.3,2537.0,2536.9,0.0053236]
[1646711117280,1.791,2537.0,2536.9,0.0053236]
[1646711117680,7.2633998,2537.0,2536.9,2.36e-05]
[1646711117881,7.2633998,2537.0,2536.7,0.0071672]
[1646711118280,8.2633998,2537.0,2536.7,0.0071672]
[1646711118920,6.291,2537.0,2536.7,0.0071672]
[1646711119320,1.22646112,2536.9,2536.7,0.0071672]
[1646711119619,6.291,2537.0,2536.7,0.00939465]
[1646711119620,0.491,2536.8,2536.7,0.00939465]
[1646711119819,0.791,2536.8,2536.7,0.00939465]
[1646711120420,0.491,2536.8,2536.7,0.0071672]
[1646711120621,1.0,2537.0,2536.7,0.0071672]
[1646711121222,0.491,2537.2,2536.7,0.0071672]
[1646711121424,0.491,2537.2,2536.7,0.9931972]
[1646711121826,0.00532709,2537.0,2536.7,0.99852499]
[1646711122768,1.19658863,2537.1,2536.7,0.9931972]
[1646711122968,0.00532502,2537.0,2536.7,0.99852292]
[1646711123775,0.00532502,2537.0,2536.7,1.98452292]
[1646711123971,0.3,2537.3,2536.7,1.9791972]
[1646711124172,0.00532502,2537.0,2536.8,0.89630349]
[1646711124384,0.00532502,2537.0,2536.8,3.26039349]
[1646711124385,0.00266054,2537.0,2536.8,3.26039349]
[1646711124773,0.00266054,2537.0,2536.9,0.3]
[1646711124972,0.12860522,2537.8,2537.2,1.37799]
[1646711125172,0.12860522,2537.8,2537.3,1.11013278]
[1646711125376,0.12860522,2537.8,2537.4,1.9713]
[1646711125976,0.12860522,2537.8,2537.0,0.00200788]
[1646711126236,0.93620258,2537.5,2536.9,1.1593]
[1646711126430,1.50696772,2537.8,2537.1,0.98589]
[1646711126431,0.61960522,2537.8,2537.1,0.98589]
[1646711126627,0.00310474,2537.5,2537.1,0.98589]
[1646711127525,1.11214659,2537.7,2537.1,0.98589]
[1646711127924,0.00561974,2537.4,2537.1,0.98589]
[1646711128125,0.00561974,2537.4,2537.3,0.98581]
[1646711128725,0.61960522,2537.8,2537.3,0.98581]
[1646711128928,0.12860522,2537.8,2537.3,1.97152]
[1646711129127,0.00561969,2537.5,2537.3,1.97152]
[1646711129967,1.03894376,2537.8,2537.3,1.97152]
[1646711130169,0.00561964,2537.5,2537.3,1.97152]
[1646711131170,1.75301552,2537.8,2537.3,1.97152]
[1646711131376,0.00561964,2537.5,2537.3,1.97152]
[1646711132579,0.12860522,2537.8,2537.3,1.97152]
[1646711132776,0.00551427,2537.5,2537.3,1.97152]
[1646711133476,0.00551427,2537.5,2537.4,3.5]
[1646711133730,0.12860522,2537.8,2537.7,1.16776818]
[1646711136428,1.31502193,2537.8,2537.7,1.16776818]
[1646711136832,1.31502193,2537.8,2537.6,1.97102]
[1646711137029,1.18641671,2537.7,2537.6,1.97102]
[1646711137228,0.12860522,2537.8,2537.6,2.37032143]
[1646711137468,0.12860522,2537.8,2537.6,2.27102]
[1646711138069,0.12860522,2537.8,2537.7,1.12966971]
[1646711138269,1.31500745,2537.8,2537.7,1.12966971]
[1646711138670,1.32033517,2537.8,2537.7,1.12966971]
[1646711139669,1.31500745,2537.8,2537.7,1.12966971]
[1646711141527,1.26500745,2537.8,2537.7,1.12966971]
[1646711142026,1.26500745,2537.8,2537.6,2.27102]
[1646711142226,1.18640223,2537.7,2537.6,2.27102]
[1646711142424,1.18640223,2537.7,2537.6,1.28551]
[1646711143926,1.18640223,2537.7,2537.6,4.78551]
[1646711144126,0.08393239,2537.8,2537.6,1.68577132]
[1646711144325,0.07860522,2537.8,2537.6,1.28551]
[1646711144726,0.08393239,2537.8,2537.6,1.28551]
[1646711145569,0.07860522,2537.8,2537.6,1.28551]
[1646711145771,0.08393234,2537.8,2537.6,1.28551]
[1646711146172,0.08393234,2537.8,2537.6,2.26455]
[1646711146873,0.07860522,2537.8,2537.6,5.76455]
[1646711147076,0.08393235,2537.8,2537.7,3.5]
[1646711147273,0.08393235,2537.8,2537.7,3.90032186]
[1646711147673,1.5288,2538.6,2537.7,3.90032186]
[1646711147876,3.15127176,2538.9,2538.5,1.13727404]
[1646711148074,1.18641446,2538.8,2538.5,1.13727404]
[1646711148280,1.18641446,2538.7,2538.5,1.13727404]
[1646711148474,1.18641446,2538.6,2538.5,1.13727404]
[1646711148730,1.18641446,2538.6,2538.5,2.12242404]
[1646711148923,1.0,2539.3,2538.5,6.0220327]
[1646711149119,1.0,2539.3,2538.5,4.93727404]
[1646711149318,1.0,2539.3,2538.5,5.93727404]
[1646711149523,0.00310125,2538.7,2538.6,2.955]
[1646711149722,0.00310125,2538.7,2538.6,7.53833263]
[1646711149920,0.00310125,2538.7,2538.6,9.80829213]
[1646711150120,0.00310125,2538.7,2538.6,6.85329213]
[1646711150323,0.71407176,2539.7,2538.8,0.29689875]
[1646711150524,2.13017176,2539.8,2538.8,3.5]
[1646711150724,0.02247799,2539.4,2538.8,3.5]
[1646711150921,0.02247799,2539.4,2539.2,1.20052071]
[1646711151122,0.02247799,2539.4,2538.8,4.48493]
[1646711151823,1.85093152,2539.9,2538.7,1.5197]
[1646711152022,0.91087176,2539.8,2538.7,1.2197]
[1646711152226,0.91087176,2539.8,2538.6,0.3]
[1646711152227,0.88870744,2539.4,2538.6,0.3]
[1646711152472,1.37970744,2539.4,2538.6,0.3]
[1646711152672,1.37970744,2539.4,2538.3,1.4622]
[1646711153173,1.37970744,2539.4,2538.6,1.15774602]
[1646711153374,0.9854,2539.3,2538.6,1.15774602]
[1646711153573,0.491,2539.4,2538.6,1.45774602]
[1646711154375,2.26997176,2539.7,2538.6,1.45774602]
[1646711154376,0.00309875,2539.1,2538.6,1.45774602]
[1646711154673,0.00309875,2539.1,2539.0,1.23240321]
[1646711155173,7.35,2539.8,2539.0,1.53240321]
[1646711155674,0.00562049,2539.2,2539.0,1.53240321]
[1646711156350,2.71407176,2539.9,2539.0,1.53240321]
[1646711156554,2.0,2539.9,2539.0,1.53240321]
[1646711156750,0.00562044,2539.2,2539.0,1.53240321]
[1646711157350,0.00562044,2539.2,2538.9,0.6]
[1646711157553,1.0,2539.9,2538.7,0.3]
[1646711157751,1.71407176,2539.9,2538.6,4.9622]
[1646711158050,0.00562044,2539.2,2538.6,4.9622]
[1646711158252,0.00562044,2539.2,2538.6,1.4622]
[1646711158451,0.00562044,2539.2,2538.8,1.04920948]
[1646711158651,0.00562044,2539.2,2538.8,1.34920948]
[1646711158850,1.71407176,2539.9,2538.8,1.34920948]
[1646711158851,1.1968,2539.9,2538.8,1.34920948]
[1646711159050,0.00562064,2539.0,2538.8,1.74170948]
[1646711160075,1.13908213,2539.7,2539.0,0.98492]
[1646711160373,0.02180479,2539.4,2539.0,0.98492]
[1646711160571,0.02180479,2539.4,2539.0,0.3]
[1646711160973,0.02180479,2539.4,2538.8,1.33624248]
[1646711161173,1.13908213,2539.7,2538.8,1.33624248]
[1646711161375,0.00545174,2539.3,2538.8,1.33624248]
[1646711162376,1.16088581,2539.7,2538.8,1.33624248]
[1646711162377,1.13908213,2539.7,2538.8,1.33624248]
[1646711162579,0.00545188,2539.2,2538.8,1.33624248]